bitfinex/quotes_SOLUSD_20250527
["timestamp","ask_amount","ask_price","bid_price","bid_amount"]
[1748333698858,13.48169903,175.84,175.81,81.8]
[1748333699860,1.13739763,175.84,175.81,81.8]
[1748333700156,13.48169903,175.84,175.81,81.8]
[1748333700467,12.3443014,175.83,175.8,0.18028015]
[1748333701039,16.32519311,175.84,175.8,0.18028015]
[1748333701274,1.13739763,175.84,175.8,18.82992901]
[1748333701457,1.13739763,175.84,175.8,31.17423041]
[1748333702054,1.13726828,175.86,175.83,12.3443014]
[1748333702236,1.1370743,175.89,175.85,12.3443014]
[1748333702440,1.1370743,175.89,175.86,12.3443014]
[1748333703357,1.1368804,175.92,175.87,12.3443014]
[1748333704355,2.84210734,175.93,175.88,12.3443014]
[1748333704538,12.3443014,175.91,175.86,30.99395026]
[1748333704736,2.84210734,175.93,175.87,12.3443014]
[1748333705035,2.84210734,175.93,175.88,12.3443014]
[1748333705254,15.18640874,175.93,175.88,12.3443014]
[1748333705866,12.3443014,175.93,175.88,12.3443014]
[1748333706161,1.13668655,175.95,175.88,12.3443014]
[1748333706162,3.97840294,175.95,175.89,18.64964886]
[1748333706353,1.13681577,175.93,175.89,18.64964886]
[1748333706549,1.13681577,175.93,175.89,107.44964886]
[1748333707158,1.13681577,175.93,175.89,119.79395026]
[1748333707660,13.48111717,175.93,175.89,107.44964886]
[1748333708648,1.13681577,175.93,175.89,119.79395026]
[1748333709552,1.13681577,175.93,175.9,12.3443014]
[1748333710064,1.13681577,175.93,175.9,101.1443014]
[1748333710562,1.13675116,175.94,175.9,101.1443014]
[1748333710763,1.13675116,175.94,175.91,12.3443014]
[1748333711271,1.13655736,175.97,175.93,12.3443014]
[1748333711460,1.13655736,175.97,175.95,12.3443014]
[1748333712047,1.13655736,175.97,175.94,12.3443014]
[1748333712369,1.13655736,175.97,175.93,46.4443014]
[1748333713172,3.97795077,175.97,175.93,46.4443014]
[1748333714064,16.32225217,175.97,175.93,34.1]
[1748333714265,3.97795077,175.97,175.93,46.4443014]
[1748333715765,16.32225217,175.97,175.93,46.4443014]
[1748333715965,3.97795077,175.97,175.93,34.1]
[1748333716176,3.97795077,175.97,175.93,46.4443014]
[1748333717391,2.84139341,175.97,175.93,46.4443014]
[1748333718491,2.84139341,175.97,175.93,34.1]
[1748333718492,12.3443014,175.96,175.93,34.1]
[1748333718863,12.3443014,175.94,175.92,50.38]
[1748333719181,12.3443014,175.93,175.88,7.5844]
[1748333719379,12.3443014,175.9,175.88,7.5844]
[1748333719562,1.1370743,175.89,175.88,7.5844]
[1748333719756,1.1370743,175.89,175.86,173.28]
[1748333720457,1.1370743,175.89,175.86,185.6243014]
[1748333721602,1.13700966,175.9,175.86,185.6243014]
[1748333722095,1.13700966,175.9,175.88,30.99395026]
[1748333722300,1.13700966,175.9,175.89,12.3443014]
[1748333722487,1.13700966,175.9,175.89,30.99395026]
[1748333722691,15.18613611,175.95,175.89,30.99395026]
[1748333722692,1.13675116,175.94,175.9,18.64964886]
[1748333722877,1.13675116,175.94,175.92,12.3443014]
[1748333723481,1.13662195,175.96,175.93,12.3443014]
[1748333723685,3.97779933,175.98,175.94,12.3443014]
[1748333723890,3.97779933,175.98,175.92,18.64964886]
[1748333724099,3.97779933,175.98,175.94,12.3443014]
[1748333724806,16.32210073,175.98,175.93,12.3443014]
[1748333725111,3.97779933,175.98,175.94,12.3443014]
[1748333726093,12.3443014,175.96,175.92,50.38]
[1748333726600,12.3443014,175.96,175.91,108.9912014]
[1748333726982,1.13668655,175.95,175.91,108.9912014]
[1748333727180,1.13668655,175.95,175.91,20.1912014]
[1748333728702,16.32270434,175.95,175.91,7.8469]
[1748333728906,16.32270434,175.95,175.9,88.8]
[1748333729111,1.13681577,175.93,175.9,88.8]
[1748333730802,1.13681577,175.93,175.89,62.7243014]
[1748333731007,13.48111717,175.93,175.89,50.38]
[1748333731310,1.13681577,175.93,175.89,62.7243014]
[1748333733314,1.13681577,175.93,175.9,12.3443014]
[1748333733706,1.13681577,175.93,175.89,50.38]
[1748333733903,1.13681577,175.93,175.9,12.3443014]
[1748333734213,1.13681577,175.93,175.91,12.3443014]
[1748333734392,1.13668655,175.95,175.91,12.3443014]
[1748333734920,1.13668655,175.95,175.92,12.3443014]
[1748333736596,3.97821085,175.96,175.92,101.1443014]
[1748333737814,1.13662195,175.96,175.92,101.1443014]
[1748333739401,3.97759646,175.99,175.92,101.1443014]
[1748333739604,12.3443014,175.97,175.92,101.1443014]
[1748333741518,1.13662195,175.96,175.92,101.1443014]
[1748333742414,16.32247824,175.96,175.92,88.8]
[1748333742614,12.3443014,175.95,175.92,88.8]
[1748333743617,3.97749871,175.99,175.92,88.8]
[1748333743806,12.3443014,175.96,175.92,88.8]
[1748333745021,1.13668655,175.95,175.92,88.8]
[1748333746698,13.48098795,175.95,175.92,88.8]
[1748333746899,1.13681577,175.93,175.92,88.8]
[1748333747107,1.13662195,175.96,175.92,88.8]
[1748333747322,13.48092335,175.96,175.92,88.8]
[1748333748223,1.13662195,175.96,175.92,101.1443014]
[1748333749325,1.13662195,175.96,175.92,88.8]
[1748333749529,13.48092335,175.96,175.92,88.8]
[1748333750928,11.73569507,176.0,175.95,38.3443014]
[1748333751229,16.08810638,176.05,175.98,12.3443014]
[1748333751230,5.20818211,176.01,175.98,12.3443014]
[1748333751606,5.20818211,176.01,175.97,12.3443014]
[1748333751801,5.20818211,176.01,175.96,12.3443014]
[1748333752003,17.55248351,176.01,175.96,26.0]
[1748333753406,5.20818211,176.01,175.96,26.0]
[1748333753617,12.3443014,176.01,175.96,26.0]
[1748333753942,3.97646227,176.04,175.96,38.3443014]
[1748333754235,12.3443014,176.01,175.96,127.1443014]
[1748333754436,3.97646227,176.04,175.96,127.1443014]
[1748333754730,1.13636363,176.0,175.96,127.1443014]
[1748333755433,13.48066503,176.0,175.96,114.8]
[1748333755625,1.13636363,176.0,175.96,127.1443014]
[1748333756933,1.13636363,176.0,175.97,12.3443014]
[1748333758835,1.13629907,176.01,175.97,12.3443014]
[1748333759040,1.13629907,176.01,175.96,127.1443014]
[1748333759339,12.3443014,176.0,175.96,164.66]
[1748333760842,1.1364282,175.99,175.96,138.66]
[1748333761936,12.3443014,176.02,175.97,12.3443014]
[1748333762239,4.07183519,176.06,176.0,26.0]
[1748333762466,5.20787309,176.06,176.03,12.3443014]
[1748333762808,5.20787309,176.06,176.01,44.64964886]
[1748333763016,5.20787309,176.06,176.02,12.3443014]
[1748333763331,1.1360379,176.06,176.01,56.99395026]
[1748333763536,13.4803393,176.06,176.01,56.99395026]
[1748333763728,2.83923575,176.11,176.05,12.3443014]
[1748333763924,12.3443014,176.1,176.04,12.3443014]
[1748333764127,2.83923575,176.11,176.04,12.3443014]
[1748333764343,12.3443014,176.09,176.04,12.3443014]
[1748333764729,3.9748896,176.11,176.04,12.3443014]
[1748333764925,13.48010378,176.09,176.04,12.3443014]
[1748333766241,12.3443014,176.08,176.03,114.93395026]
[1748333767537,1.13591185,176.07,176.03,114.93395026]
[1748333768250,1.13552489,176.13,176.05,12.3443014]
[1748333768452,12.3443014,176.1,176.04,18.64964886]
[1748333768655,12.3443014,176.09,176.04,30.99395026]
[1748333768824,12.3443014,176.09,176.04,267.99395026]
[1748333769220,12.3443014,176.05,176.03,49.86]
[1748333769456,1.13610543,176.04,176.03,138.66]
[1748333770022,2.83940996,176.1,176.03,151.0043014]
[1748333770240,12.3443014,176.09,176.04,12.3443014]
[1748333770421,2.83940996,176.1,176.04,101.1443014]
[1748333770636,12.3443014,176.09,176.04,101.1443014]
[1748333770952,12.3443014,176.08,176.04,88.8]
[1748333771650,1.13591185,176.07,176.04,88.8]
[1748333771830,13.48021325,176.07,176.04,88.8]
[1748333773457,2.83913789,176.11,176.04,101.1443014]
[1748333773652,2.83913789,176.11,176.04,88.8]
[1748333773830,12.3443014,176.1,176.05,12.3443014]
[1748333774030,2.83913789,176.11,176.05,12.3443014]
[1748333774229,12.3443014,176.08,176.04,88.8]
[1748333775251,2.83913789,176.11,176.04,88.8]
[1748333775658,12.3443014,176.09,176.04,88.8]
[1748333775951,2.83913789,176.11,176.04,101.1443014]
[1748333776125,1.13552489,176.13,176.06,12.3443014]
[1748333776325,12.3443014,176.1,176.05,56.99395026]
[1748333776521,12.3443014,176.1,176.05,44.64964886]
[1748333776726,12.3443014,176.1,176.05,56.99395026]
[1748333777355,12.3443014,176.1,176.05,44.64964886]
[1748333778345,1.13578283,176.09,176.05,56.99395026]
[1748333778550,1.13578283,176.09,176.05,44.64964886]
[1748333778850,13.48008423,176.09,176.05,26.0]
[1748333779335,1.13552489,176.13,176.08,12.3443014]
[1748333779658,1.13552489,176.13,176.09,12.3443014]
[1748333780445,12.3443014,176.12,176.08,88.8]
[1748333780936,1.13552489,176.13,176.08,88.8]
[1748333781140,13.47982629,176.13,176.08,88.8]
[1748333782236,1.13552489,176.13,176.09,12.3443014]
[1748333782443,1.13552489,176.13,176.09,46.4043014]
[1748333782837,12.3443014,176.11,176.08,88.8]
[1748333784150,12.3443014,176.1,176.08,88.8]
[1748333784532,1.13578283,176.09,176.08,88.8]
[1748333787437,13.48008423,176.09,176.07,88.8]
[1748333787747,12.3443014,176.08,176.07,88.8]
[1748333787949,1.13578283,176.09,176.07,88.8]
[1748333788142,12.3443014,176.08,176.07,88.8]
[1748333788339,3.97523992,176.09,176.03,35.5734]
[1748333788538,5.67710005,176.15,176.04,12.3443014]
[1748333788739,12.3443014,176.09,176.05,34.06]
[1748333788942,12.3443014,176.07,176.03,1.5134]
[1748333789150,12.3443014,176.06,176.03,34.06]
[1748333789854,12.3443014,176.06,176.02,75.42]
[1748333790161,12.3443014,176.04,176.02,75.42]
[1748333790857,13.48046733,176.04,176.02,75.42]
[1748333791652,1.13616593,176.04,176.02,75.42]
[1748333795359,2.83974501,176.08,176.02,75.42]
[1748333795560,12.3443014,176.05,176.02,164.22]
[1748333796461,1.13610543,176.04,176.02,164.22]
[1748333798541,2.83974501,176.08,176.02,164.22]
[1748333798749,12.3443014,176.06,176.02,164.22]
[1748333799160,12.3443014,176.05,176.02,164.22]
[1748333800867,1.13610543,176.04,176.02,164.22]
[1748333803172,1.13610543,176.04,176.02,138.22]
[1748333803368,12.3443014,176.03,176.02,138.22]
[1748333804450,13.48040683,176.04,176.02,138.22]
[1748333804958,13.48040683,176.04,176.02,49.42]
[1748333805464,1.13610543,176.04,176.02,49.42]
[1748333805770,13.48040683,176.04,176.02,49.42]
[1748333807489,12.3443014,176.03,176.02,49.42]
[1748333807669,13.48040683,176.04,176.02,49.42]
[1748333807972,13.48036477,176.05,176.02,49.42]
[1748333809398,1.13606337,176.05,176.02,49.42]
[1748333809969,1.13606337,176.05,176.01,12.3443014]
[1748333810377,1.13606337,176.05,176.02,12.3443014]
[1748333810751,1.13584734,176.08,176.03,12.3443014]
[1748333810962,1.13584734,176.08,176.03,101.1443014]
[1748333811256,13.48014874,176.08,176.03,88.8]
[1748333811683,12.3443014,176.07,176.03,88.8]
[1748333812863,1.13597637,176.06,176.03,88.8]
[1748333813070,1.13597637,176.06,176.03,101.1443014]
[1748333814174,2.83934096,176.1,176.03,101.1443014]
[1748333814387,12.3443014,176.08,176.03,101.1443014]
[1748333814567,13.48008423,176.09,176.04,12.3443014]
[1748333814881,13.48008423,176.09,176.05,34.06]
[1748333815057,1.13578283,176.09,176.05,46.4043014]
[1748333815252,12.3443014,176.1,176.05,46.4043014]
[1748333815253,1.13574056,176.1,176.06,12.3443014]
[1748333815668,12.3443014,176.11,176.06,12.3443014]
[1748333815868,4.07183519,176.13,176.08,38.3443014]
[1748333815869,13.47984348,176.13,176.08,38.3443014]
[1748333816074,1.13554208,176.13,176.09,12.3443014]
[1748333816278,1.13554208,176.13,176.1,34.06]
[1748333816480,13.47984348,176.13,176.1,34.06]
[1748333817080,12.3443014,176.11,176.1,34.06]
[1748333817881,12.3443014,176.12,176.1,34.06]
[1748333819287,1.13565385,176.11,176.1,34.06]
[1748333819862,1.13559844,176.12,176.1,34.06]
[1748333821376,13.47982629,176.13,176.1,34.06]
[1748333821888,12.3443014,176.12,176.1,34.06]
[1748333822503,1.13565385,176.11,176.1,34.06]
[1748333824972,13.47995525,176.11,176.1,34.06]
[1748333825474,1.13565385,176.11,176.1,34.06]
[1748333827285,13.47995525,176.11,176.1,34.06]
[1748333827675,13.47995525,176.11,176.07,137.92]
[1748333827882,12.3443014,176.1,176.07,137.92]
[1748333828286,12.3443014,176.09,176.07,137.92]
[1748333828689,1.13584734,176.08,176.07,137.92]
[1748333829588,13.48014874,176.08,176.07,137.92]
[1748333830022,1.13584734,176.08,176.07,137.92]
[1748333830193,13.48014874,176.08,176.07,137.92]
[1748333831377,13.48014874,176.08,176.07,49.12]
[1748333831597,1.13584734,176.08,176.07,49.12]
[1748333831905,13.48014874,176.08,176.07,49.12]
[1748333832984,1.13584734,176.08,176.07,49.12]
[1748333833578,13.48010239,176.09,176.07,49.12]
[1748333834090,1.13580099,176.09,176.07,49.12]
[1748333834491,12.3443014,176.11,176.07,137.92]
[1748333835086,12.3443014,176.1,176.07,137.92]
[1748333835393,12.3443014,176.09,176.07,137.92]
[1748333836015,12.3443014,176.1,176.07,137.92]
[1748333837313,1.13571834,176.1,176.07,137.92]
[1748333837686,1.13558937,176.12,176.08,12.3443014]
[1748333838390,12.3443014,176.11,176.07,286.12]
[1748333838598,12.3443014,176.11,176.07,137.92]
[1748333839016,1.13558937,176.12,176.07,150.2643014]
[1748333839190,13.47989077,176.12,176.07,150.2643014]
[1748333840410,1.13558937,176.12,176.07,150.2643014]
[1748333840712,12.3443014,176.15,176.1,30.99395026]
[1748333840898,1.13533151,176.16,176.1,153.85395026]
[1748333841104,12.3443014,176.15,176.1,153.85395026]
[1748333841406,5.20712511,176.17,176.14,12.3443014]
[1748333841607,5.20712511,176.17,176.15,12.3443014]
[1748333841813,4.07183519,176.17,176.15,12.3443014]
[1748333842201,4.07183519,176.17,176.14,183.9843014]
[1748333842539,5.20711319,176.17,176.14,171.64]
[1748333842898,5.20711319,176.17,176.14,183.9843014]
[1748333843421,1.135278,176.17,176.14,183.9843014]
[1748333843915,5.67418061,176.24,176.14,183.9843014]
[1748333843916,1.13500936,176.21,176.16,12.3443014]
[1748333844097,1.13500936,176.21,176.17,12.3443014]
[1748333845100,1.13500936,176.21,176.16,101.1443014]
[1748333845101,12.3443014,176.21,176.16,101.1443014]
[1748333846113,1.13507377,176.2,176.16,101.1443014]
[1748333847616,1.13507377,176.2,176.17,12.3443014]
[1748333847804,1.13507377,176.2,176.16,101.1443014]
[1748333849326,1.13507377,176.2,176.17,12.3443014]
[1748333850936,13.47931076,176.21,176.16,88.8]
[1748333851139,12.3443014,176.19,176.16,88.8]
[1748333851337,12.3443014,176.17,176.14,137.58]
[1748333853245,1.13533151,176.16,176.14,137.58]
[1748333855543,1.13528541,176.17,176.14,137.58]
[1748333856746,12.3443014,176.2,176.15,30.99395026]
[1748333856951,12.3443014,176.2,176.15,119.79395026]
[1748333857319,13.4794396,176.19,176.15,107.44964886]
[1748333857519,12.3443014,176.18,176.15,88.8]
[1748333858638,1.13526707,176.17,176.15,88.8]
[1748333859452,1.13507377,176.2,176.16,12.3443014]
[1748333859818,13.47937517,176.2,176.15,101.1443014]
[1748333860125,1.13507377,176.2,176.17,12.3443014]
[1748333860519,1.13507377,176.2,176.17,88.8]
[1748333861018,12.3443014,176.19,176.17,88.8]
[1748333861626,12.3443014,176.18,176.17,88.8]
[1748333863249,13.47950403,176.18,176.17,88.8]
[1748333863972,1.13468739,176.26,176.18,26.0]
[1748333864127,1.13468739,176.26,176.21,12.3443014]
[1748333864329,13.47898879,176.26,176.21,12.3443014]
[1748333864526,13.47898879,176.26,176.2,26.0]
[1748333864725,1.13468739,176.26,176.21,48.4]
[1748333865148,12.3443014,176.25,176.21,48.4]
[1748333865357,1.13481615,176.24,176.21,48.4]
[1748333867163,12.3443014,176.26,176.21,48.4]
[1748333867337,12.3443014,176.26,176.21,60.7443014]
[1748333867537,12.3443014,176.27,176.22,12.3443014]
[1748333868230,2.83642974,176.28,176.22,12.3443014]
[1748333868427,12.3443014,176.27,176.22,12.3443014]
[1748333868670,12.3443014,176.27,176.21,48.4]
[1748333868871,12.3443014,176.26,176.21,60.7443014]
[1748333869035,1.13475177,176.25,176.21,60.7443014]
[1748333869672,12.3443014,176.22,176.21,48.4]
[1748333870160,1.13475177,176.25,176.21,94.7843014]
[1748333870330,1.13475177,176.25,176.22,12.3443014]
[1748333871181,1.13462302,176.27,176.22,18.64964886]
[1748333871330,1.13462302,176.27,176.22,30.99395026]
[1748333872387,3.97035901,176.31,176.22,30.99395026]
[1748333872532,12.3443014,176.28,176.22,30.99395026]
[1748333873647,1.13468739,176.26,176.22,18.64964886]
[1748333873844,1.13468739,176.26,176.22,119.79395026]
[1748333874465,13.47898879,176.26,176.22,88.8]
[1748333875563,1.13468739,176.26,176.22,88.8]
[1748333876259,13.47898879,176.26,176.22,88.8]
[1748333876864,12.3443014,176.25,176.22,88.8]
[1748333877069,1.13468739,176.26,176.22,88.8]
[1748333877370,1.13468739,176.26,176.22,122.84]
[1748333877546,13.47898879,176.26,176.22,122.84]
[1748333878062,1.13468739,176.26,176.22,122.84]
[1748333878370,13.47898879,176.26,176.22,122.84]
[1748333878537,12.3443014,176.24,176.22,122.84]
[1748333879968,12.3443014,176.24,176.22,88.8]
[1748333880264,12.3443014,176.23,176.22,88.8]
[1748333880454,12.3443014,176.23,176.21,48.4]
[1748333880633,12.3443014,176.22,176.16,81.68]
[1748333880838,12.3443014,176.17,176.16,81.68]
[1748333881967,13.47956847,176.17,176.16,81.68]
[1748333882439,1.13526707,176.17,176.16,81.68]
[1748333884642,12.3443014,176.17,176.16,81.68]
[1748333885443,9.64593733,176.24,176.16,81.68]
[1748333885751,12.3443014,176.18,176.16,81.68]
[1748333885951,1.13481615,176.24,176.17,12.3443014]
[1748333886167,1.13481615,176.24,176.19,12.3443014]
[1748333886343,1.13481615,176.24,176.2,34.04]
[1748333886344,13.47911755,176.24,176.2,34.04]
[1748333887954,12.3443014,176.23,176.2,34.04]
[1748333888152,1.13481615,176.24,176.2,34.04]
[1748333888363,12.3443014,176.22,176.2,34.04]
[1748333888969,12.3443014,176.23,176.2,34.04]
[1748333889344,1.13494495,176.22,176.2,34.04]
[1748333890267,13.47918984,176.23,176.2,34.04]
[1748333890473,1.13488844,176.23,176.2,34.04]
[1748333890650,1.13488844,176.23,176.2,122.84]
[1748333892058,12.3443014,176.27,176.22,12.3443014]
[1748333892267,13.47894467,176.27,176.22,101.1443014]
[1748333892641,13.47894467,176.27,176.22,88.8]
[1748333892642,1.13464327,176.27,176.22,88.8]
[1748333892849,13.47894467,176.27,176.22,101.1443014]
[1748333894180,12.3443014,176.26,176.22,88.8]
[1748333894481,1.13449429,176.29,176.22,88.8]
[1748333894778,12.3443014,176.26,176.22,88.8]
[1748333895455,3.97073003,176.29,176.22,88.8]
[1748333895652,12.3443014,176.26,176.22,88.8]
[1748333896664,13.47903681,176.26,176.22,88.8]
[1748333897052,12.3443014,176.25,176.22,88.8]
[1748333897676,1.13473541,176.26,176.22,88.8]
[1748333897881,12.3443014,176.23,176.22,88.8]
[1748333898080,12.3443014,176.23,176.21,48.38]
[1748333898081,12.3443014,176.23,176.21,137.18]
[1748333898382,12.3443014,176.24,176.21,137.18]
[1748333898880,1.13488055,176.23,176.21,137.18]
[1748333899088,1.1348276,176.24,176.21,137.18]
[1748333899459,13.4790671,176.25,176.21,137.18]
[1748333899775,1.1347657,176.25,176.21,137.18]
[1748333899978,13.4790671,176.25,176.21,137.18]
[1748333900788,1.1347657,176.25,176.21,137.18]
[1748333901664,12.3443014,176.26,176.21,149.5243014]
[1748333901665,13.47900223,176.26,176.21,149.5243014]
[1748333902685,13.47900223,176.26,176.21,137.18]
[1748333902983,1.13488055,176.23,176.21,137.18]
[1748333903187,13.47918195,176.23,176.21,137.18]
[1748333903486,12.3443014,176.25,176.21,137.18]
[1748333904080,1.13468739,176.26,176.21,137.18]
[1748333904271,13.47898879,176.26,176.21,137.18]
[1748333906091,12.3443014,176.25,176.21,137.18]
[1748333907185,1.13481615,176.24,176.21,137.18]
[1748333907389,1.13481615,176.24,176.21,171.22]
[1748333908589,12.3443014,176.23,176.21,137.18]
[1748333908787,1.13481615,176.24,176.21,48.38]
[1748333908788,12.3443014,176.22,176.21,48.38]
[1748333909364,13.47924635,176.22,176.21,48.38]
[1748333909991,1.13494495,176.22,176.21,48.38]
[1748333911394,13.47924635,176.22,176.21,48.38]
[1748333913789,13.47924635,176.22,176.2,0.13615262]
[1748333913990,12.3443014,176.21,176.2,0.13615262]
[1748333915472,13.47931076,176.21,176.2,0.13615262]
[1748333916078,60.33618237,176.21,176.1,136.98]
[1748333916283,12.3443014,176.13,176.1,48.18]
[1748333916489,35.64757957,176.21,176.11,12.3443014]
[1748333916689,12.3443014,176.16,176.1,149.3243014]
[1748333916890,12.3443014,176.14,176.1,136.98]
[1748333917285,12.3443014,176.13,176.1,136.98]
[1748333917488,1.13558937,176.12,176.1,48.18]
[1748333917901,13.47989077,176.12,176.1,48.18]
[1748333918203,1.13558937,176.12,176.1,48.18]
[1748333918813,13.47989077,176.12,176.1,48.18]
[1748333918980,1.13558937,176.12,176.1,48.18]
[1748333919481,13.47989077,176.12,176.1,48.18]
[1748333919683,12.3443014,176.11,176.1,48.18]
[1748333920880,13.47989077,176.12,176.1,48.18]
[1748333921076,12.3443014,176.11,176.06,88.8]
[1748333921294,12.3443014,176.09,176.06,34.04]
[1748333921678,1.13582729,176.09,176.06,34.04]
[1748333921878,1.13582729,176.09,176.05,46.3843014]
[1748333922604,1.13582729,176.09,176.05,12.3443014]
[1748333922897,12.3443014,176.08,176.05,34.04]
[1748333923104,12.3443014,176.08,176.04,197.04]
[1748333923312,12.3443014,176.08,176.04,163.0]
[1748333923491,12.3443014,176.08,176.04,197.04]
[1748333923683,5.67648084,176.17,176.04,197.04]
[1748333923684,9.64991558,176.17,176.04,197.04]
[1748333923884,12.3443014,176.08,176.04,108.24]
[1748333924293,12.3443014,176.08,176.04,74.2]
[1748333925610,18.64964886,176.16,176.04,74.2]
[1748333925821,1.13584734,176.08,176.04,86.5443014]
[1748333926110,1.13584734,176.08,176.04,108.26]
[1748333926495,1.13565385,176.11,176.04,120.6043014]
[1748333926687,13.47995525,176.11,176.06,12.3443014]
[1748333927032,13.47995525,176.11,176.05,12.3443014]
[1748333927723,12.3443014,176.1,176.04,120.6043014]
[1748333927932,1.13578283,176.09,176.04,120.6043014]
[1748333929110,1.13578283,176.09,176.04,209.4043014]
[1748333930200,1.13578283,176.09,176.04,197.06]
[1748333930399,1.13578283,176.09,176.04,209.4043014]
[1748333932135,1.13578283,176.09,176.05,12.3443014]
[1748333934916,13.48008423,176.09,176.04,197.06]
[1748333935090,13.48008423,176.09,176.04,209.4043014]
[1748333936221,3.97523992,176.09,176.04,48.2]
[1748333936721,12.3443014,176.06,176.04,48.2]
[1748333937097,12.3443014,176.08,176.04,48.2]
[1748333937910,13.48014874,176.08,176.04,48.2]
[1748333938821,1.13584734,176.08,176.04,48.2]
[1748333939519,13.48014874,176.08,176.04,48.2]
[1748333940930,12.3443014,176.07,176.04,48.2]
[1748333941134,12.3443014,176.06,176.04,48.2]
[1748333941328,12.3443014,176.07,176.04,48.2]
[1748333941705,1.13597637,176.06,176.04,48.2]
[1748333941901,1.13592176,176.07,176.04,48.2]
[1748333942518,1.13571834,176.1,176.06,12.3443014]
[1748333942725,13.48001974,176.1,176.06,88.8]
[1748333943134,12.3443014,176.09,176.06,88.8]
[1748333943710,1.13584734,176.08,176.06,88.8]
[1748333949722,12.3443014,176.07,176.06,88.8]
[1748333951230,1.13591185,176.07,176.06,88.8]
[1748333951620,13.48021325,176.07,176.06,88.8]
[1748333952827,13.48021325,176.07,176.04,137.0]
[1748333953226,12.3443014,176.06,176.04,137.0]
[1748333954543,1.13591185,176.07,176.04,137.0]
[1748333954718,1.13604089,176.05,176.04,137.0]
[1748333955038,1.13604089,176.05,176.04,48.2]
[1748333956234,12.3443014,176.08,176.04,48.2]
[1748333956420,12.3443014,176.09,176.04,48.2]
[1748333956619,12.3443014,176.09,176.04,137.0]
[1748333957126,12.3443014,176.08,176.04,137.0]
[1748333957954,12.3443014,176.09,176.04,137.0]
[1748333958110,3.97411149,176.14,176.04,149.3443014]
[1748333958621,12.3443014,176.09,176.04,149.3443014]
[1748333959343,1.13584734,176.08,176.04,149.3443014]
[1748333961324,5.66663519,176.15,176.05,18.64964886]
[1748333961521,1.13546042,176.14,176.1,12.3443014]
[1748333961843,5.20724253,176.15,176.12,12.3443014]
[1748333962020,4.07183519,176.15,176.13,12.3443014]
[1748333962220,1.13535322,176.16,176.13,12.3443014]
[1748333962420,1.13535322,176.16,176.12,12.3443014]
[1748333962838,12.3443014,176.13,176.11,136.66]
[1748333963046,12.3443014,176.14,176.11,136.66]
[1748333963353,1.13552489,176.13,176.11,136.66]
[1748333965536,13.47982629,176.13,176.11,136.66]
[1748333965932,1.13552489,176.13,176.11,136.66]
[1748333966233,1.6133,176.17,176.12,12.3443014]
[1748333966234,1.13526707,176.17,176.12,12.3443014]
[1748333966436,1.13526707,176.17,176.14,12.3443014]
[1748333966640,1.13526707,176.17,176.14,88.8]
[1748333966824,1.13526707,176.17,176.15,12.3443014]
[1748333967226,1.13526707,176.17,176.14,101.1443014]
[1748333967527,1.13520263,176.18,176.14,101.1443014]
[1748333969149,13.4794396,176.19,176.14,88.8]
[1748333969530,13.4794396,176.19,176.14,101.1443014]
[1748333970124,1.13481615,176.24,176.17,12.3443014]
[1748333970338,1.13481615,176.24,176.19,12.3443014]
[1748333970553,1.13481615,176.24,176.2,12.3443014]
[1748333970857,16.31615794,176.24,176.19,101.1443014]
[1748333971029,12.3443014,176.23,176.19,88.8]
[1748333971422,12.3443014,176.25,176.19,101.1443014]
[1748333971636,12.3443014,176.24,176.19,88.8]
[1748333971837,12.3443014,176.24,176.19,101.1443014]
[1748333972252,3.97140587,176.26,176.2,18.64964886]
[1748333972429,12.3443014,176.25,176.2,18.64964886]
[1748333973358,1.13481615,176.24,176.2,18.64964886]
[1748333974232,1.13481615,176.24,176.2,30.99395026]
[1748333974554,1.13481615,176.24,176.21,12.3443014]
[1748333974771,1.13481615,176.24,176.21,101.1443014]
[1748333975530,1.13481615,176.24,176.21,88.8]
[1748333975837,1.13481615,176.24,176.21,101.1443014]
[1748333976362,1.13475177,176.25,176.21,12.3443014]
[1748333979363,1.13475177,176.25,176.21,101.1443014]
[1748333980060,1.13475177,176.25,176.21,88.8]
[1748333980244,1.13475177,176.25,176.21,101.1443014]
[1748333981147,13.47905317,176.25,176.21,88.8]
[1748333981352,16.3159326,176.25,176.21,88.8]